[Event "*** Titled Tuesday Blitz"]
[Site "Chess.com"]
[Date "2020.12.29"]
[Round "8"]
[White "Dynamikus"]
[Black "PotapovaM"]
[Result "1-0"]
[WhiteElo "2735"]
[BlackElo "2542"]
[TimeControl "180+1"]
[EndTime "11:29:38 PST"]
[Termination "Dynamikus won on time"]

1. e4 {[%clk 0:02:59]} 1... c5 {[%clk 0:02:28.6]} 2. Nf3 {[%clk 0:02:54.4]} 2...
d6 {[%clk 0:02:28.9]} 3. d4 {[%clk 0:02:54.9]} 3... cxd4 {[%clk 0:02:29.8]} 4.
Nxd4 {[%clk 0:02:55.8]} 4... Nf6 {[%clk 0:02:30.2]} 5. Nc3 {[%clk 0:02:56.1]}
5... a6 {[%clk 0:02:30.9]} 6. Be3 {[%clk 0:02:56.8]} 6... e5 {[%clk 0:02:31.1]}
7. Nb3 {[%clk 0:02:57.3]} 7... Be6 {[%clk 0:02:31.7]} 8. h3 {[%clk 0:02:58]}
8... Be7 {[%clk 0:02:30.4]} 9. f4 {[%clk 0:02:58.6]} 9... exf4 {[%clk 0:02:28]}
10. Bxf4 {[%clk 0:02:59.5]} 10... Nc6 {[%clk 0:02:27.8]} 11. Qe2 {[%clk
0:03:00]} 11... Nd7 {[%clk 0:02:27.3]} 12. O-O-O {[%clk 0:03:00.2]} 12... Nce5
{[%clk 0:02:27.1]} 13. g4 {[%clk 0:02:59.8]} 13... Rc8 {[%clk 0:02:26.3]} 14.
Qe3 {[%clk 0:02:59.2]} 14... O-O {[%clk 0:02:10.9]} 15. Kb1 {[%clk 0:02:59.3]}
15... Qc7 {[%clk 0:01:38.6]} 16. Nd4 {[%clk 0:02:59]} 16... Rfd8 {[%clk
0:01:29.8]} 17. Nf5 {[%clk 0:02:46]} 17... Bf8 {[%clk 0:01:29.9]} 18. g5 {[%clk
0:02:31.8]} 18... Nb6 {[%clk 0:01:25.4]} 19. Qg3 {[%clk 0:02:05.1]} 19... Nbc4
{[%clk 0:01:23.6]} 20. Bxc4 {[%clk 0:02:04.6]} 20... Nxc4 {[%clk 0:01:08.8]} 21.
Rh2 {[%clk 0:02:04.9]} 21... Qb6 {[%clk 0:01:05.7]} 22. Bc1 {[%clk 0:02:00.7]}
22... g6 {[%clk 0:00:55.4]} 23. Rf2 {[%clk 0:01:41.7]} 23... Na3+ {[%clk
0:00:50.5]} 24. Ka1 {[%clk 0:01:41.1]} 24... Rxc3 {[%clk 0:00:50.3]} 25. Qxc3
{[%clk 0:01:33.2]} 25... Qxf2 {[%clk 0:00:46.1]} 26. Nh6+ {[%clk 0:01:26.1]}
26... Bxh6 {[%clk 0:00:41.7]} 27. gxh6 {[%clk 0:01:27]} 27... f6 {[%clk
0:00:29.7]} 28. bxa3 {[%clk 0:01:07.1]} 28... Rc8 {[%clk 0:00:29.8]} 29. Qd4
{[%clk 0:00:53]} 29... Qxd4+ {[%clk 0:00:08.3]} 30. Rxd4 {[%clk 0:00:53.9]}
30... Rxc2 {[%clk 0:00:08.9]} 31. Bb2 {[%clk 0:00:50.8]} 31... Re2 {[%clk
0:00:08.8]} 32. Bc3 {[%clk 0:00:42.6]} 32... Kf7 {[%clk 0:00:07.8]} 33. Rxd6
{[%clk 0:00:40.7]} 33... Rxe4 {[%clk 0:00:06.5]} 34. Rb6 {[%clk 0:00:36]} 34...
g5 {[%clk 0:00:06.7]} 35. Rxb7+ {[%clk 0:00:35.5]} 35... Kg6 {[%clk 0:00:07.3]}
36. Rg7+ {[%clk 0:00:34.5]} 36... Kxh6 {[%clk 0:00:07.6]} 37. Bxf6 {[%clk
0:00:35.4]} 37... Re1+ {[%clk 0:00:06.6]} 38. Kb2 {[%clk 0:00:35.1]} 38... Re2+
{[%clk 0:00:07.3]} 39. Kc3 {[%clk 0:00:35.5]} 39... Bxh3 {[%clk 0:00:05.1]} 40.
Rxg5 {[%clk 0:00:33.9]} 40... Rxa2 {[%clk 0:00:05]} 41. Kb4 {[%clk 0:00:26.5]}
41... Rf2 {[%clk 0:00:04.6]} 42. Be7 {[%clk 0:00:20.6]} 42... Bf1 {[%clk
0:00:05]} 43. Rg3 {[%clk 0:00:16.7]} 43... Rf4+ {[%clk 0:00:05.3]} 44. Kc5
{[%clk 0:00:15.3]} 44... Rf7 {[%clk 0:00:04.9]} 45. Kd6 {[%clk 0:00:13.8]} 45...
Bb5 {[%clk 0:00:04.1]} 46. Rg4 {[%clk 0:00:10.1]} 46... Kh5 {[%clk 0:00:03.8]}
47. Rh4+ {[%clk 0:00:09.8]} 47... Kg6 {[%clk 0:00:04]} 48. Ke6 {[%clk
0:00:10.4]} 48... Bc4+ {[%clk 0:00:03.9]} 49. Rxc4 {[%clk 0:00:09.7]} 49... h5
{[%clk 0:00:04.1]} 50. Rc8 {[%clk 0:00:05.8]} 50... Rf1 {[%clk 0:00:04]} 51.
Rg8+ {[%clk 0:00:05.5]} 51... Kh7 {[%clk 0:00:04.5]} 52. Ra8 {[%clk 0:00:04.9]}
52... Kg6 {[%clk 0:00:04.9]} 53. Rxa6 {[%clk 0:00:04.1]} 53... h4 {[%clk
0:00:05.1]} 54. Bxh4 {[%clk 0:00:03.7]} 54... Kh5 {[%clk 0:00:05.6]} 55. Bf6
{[%clk 0:00:03.7]} 55... Kg4 {[%clk 0:00:06.1]} 56. Ra4+ {[%clk 0:00:03.6]}
56... Kg3 {[%clk 0:00:05.8]} 57. Rb4 {[%clk 0:00:03.8]} 57... Re1+ {[%clk
0:00:04.7]} 58. Be5+ {[%clk 0:00:04.7]} 58... Kf3 {[%clk 0:00:04.4]} 59. a4
{[%clk 0:00:05.4]} 59... Rc1 {[%clk 0:00:03.3]} 60. a5 {[%clk 0:00:05.4]} 60...
Ke3 {[%clk 0:00:03.8]} 61. Kd5 {[%clk 0:00:04.8]} 61... Rd1+ {[%clk 0:00:03.2]}
62. Bd4+ {[%clk 0:00:04.2]} 62... Kf3 {[%clk 0:00:02.7]} 63. a6 {[%clk
0:00:05.1]} 63... Rh1 {[%clk 0:00:02.1]} 64. a7 {[%clk 0:00:05.1]} 64... Rh5+
{[%clk 0:00:02.4]} 65. Kc4 {[%clk 0:00:04.8]} 65... Rh8 {[%clk 0:00:02.4]} 66.
Rb8 {[%clk 0:00:05.7]} 66... Rh7 {[%clk 0:00:02.4]} 67. a8=Q+ {[%clk 0:00:05.6]}
67... Ke2 {[%clk 0:00:02.4]} 68. Re8+ {[%clk 0:00:05.9]} 68... Kd1 {[%clk
0:00:01.9]} 69. Qa1+ {[%clk 0:00:05.9]} 1-0

[Event "*** Titled Tuesday Blitz"]
[Site "Chess.com"]
[Date "2020.12.29"]
[Round "8"]
[White "Love_craft"]
[Black "SamuelGhimpu2003"]
[Result "1/2-1/2"]
[WhiteElo "2485"]
[BlackElo "2604"]
[TimeControl "180+1"]
[EndTime "11:29:40 PST"]
[Termination "Game drawn by repetition"]

1. Nf3 {[%clk 0:03:00.9]} 1... Nf6 {[%clk 0:02:48.7]} 2. g3 {[%clk 0:03:01]}
2... g6 {[%clk 0:02:49.6]} 3. Bg2 {[%clk 0:03:01.4]} 3... Bg7 {[%clk 0:02:50.5]}
4. O-O {[%clk 0:03:02.3]} 4... O-O {[%clk 0:02:51.1]} 5. d4 {[%clk 0:03:02.8]}
5... d5 {[%clk 0:02:51.3]} 6. Nbd2 {[%clk 0:03:02.6]} 6... Nc6 {[%clk
0:02:40.9]} 7. c3 {[%clk 0:03:01.4]} 7... Re8 {[%clk 0:02:23.4]} 8. Ne5 {[%clk
0:03:00.7]} 8... Nxe5 {[%clk 0:02:21.4]} 9. dxe5 {[%clk 0:03:01.6]} 9... Nd7
{[%clk 0:02:21]} 10. f4 {[%clk 0:03:01.5]} 10... e6 {[%clk 0:02:20.9]} 11. e4
{[%clk 0:03:00.7]} 11... Nc5 {[%clk 0:02:11.6]} 12. exd5 {[%clk 0:02:54.6]}
12... exd5 {[%clk 0:02:12.5]} 13. Nf3 {[%clk 0:02:51.5]} 13... Ne4 {[%clk
0:02:03]} 14. Be3 {[%clk 0:02:49.9]} 14... c5 {[%clk 0:02:02]} 15. Nd2 {[%clk
0:02:47]} 15... d4 {[%clk 0:01:42.3]} 16. Nxe4 {[%clk 0:02:41.7]} 16... dxe3
{[%clk 0:01:41.6]} 17. Qxd8 {[%clk 0:02:24.9]} 17... Rxd8 {[%clk 0:01:42.5]} 18.
Rfd1 {[%clk 0:02:24.6]} 18... Bg4 {[%clk 0:01:35.7]} 19. Rxd8+ {[%clk
0:02:08.5]} 19... Rxd8 {[%clk 0:01:36.6]} 20. Re1 {[%clk 0:02:05.7]} 20... b6
{[%clk 0:01:18.6]} 21. h3 {[%clk 0:01:58.3]} 21... Bf5 {[%clk 0:00:45.9]} 22.
Rxe3 {[%clk 0:01:41.2]} 22... Rd1+ {[%clk 0:00:44.9]} 23. Kf2 {[%clk 0:01:39.6]}
23... Rb1 {[%clk 0:00:38.3]} 24. Re2 {[%clk 0:01:26]} 24... c4 {[%clk
0:00:31.5]} 25. g4 {[%clk 0:01:18.3]} 25... Be6 {[%clk 0:00:29.1]} 26. Nd6
{[%clk 0:01:12]} 26... Bf8 {[%clk 0:00:20.3]} 27. Be4 {[%clk 0:00:29.5]} 27...
Rd1 {[%clk 0:00:18.2]} 28. f5 {[%clk 0:00:28.8]} 28... gxf5 {[%clk 0:00:17.8]}
29. gxf5 {[%clk 0:00:29.7]} 29... Bxd6 {[%clk 0:00:16.7]} 30. fxe6 {[%clk
0:00:24.3]} 30... Bc5+ {[%clk 0:00:14.3]} 31. Kf3 {[%clk 0:00:19.6]} 31... fxe6
{[%clk 0:00:15.2]} 32. Rg2+ {[%clk 0:00:19.5]} 32... Kf7 {[%clk 0:00:14.4]} 33.
Bxh7 {[%clk 0:00:18.9]} 33... Rf1+ {[%clk 0:00:14.7]} 34. Ke2 {[%clk 0:00:17.8]}
34... Rh1 {[%clk 0:00:13]} 35. Bg8+ {[%clk 0:00:13.7]} 35... Ke7 {[%clk
0:00:12.4]} 36. Rg7+ {[%clk 0:00:12.8]} 36... Kf8 {[%clk 0:00:12.7]} 37. Rg3
{[%clk 0:00:13.3]} 37... Rh2+ {[%clk 0:00:12.9]} 38. Kf3 {[%clk 0:00:10.9]}
38... Rf2+ {[%clk 0:00:10.2]} 39. Ke4 {[%clk 0:00:09.9]} 39... Re2+ {[%clk
0:00:10.8]} 40. Kf4 {[%clk 0:00:10.3]} 40... Rf2+ {[%clk 0:00:09]} 41. Ke4
{[%clk 0:00:08.9]} 41... Ke7 {[%clk 0:00:09.4]} 42. Rg7+ {[%clk 0:00:07.6]}
42... Kf8 {[%clk 0:00:09.4]} 43. Rg6 {[%clk 0:00:05.7]} 43... Re2+ {[%clk
0:00:08.8]} 44. Kf3 {[%clk 0:00:05.7]} 44... Re3+ {[%clk 0:00:08.4]} 45. Kf4
{[%clk 0:00:05.4]} 45... Rxh3 {[%clk 0:00:08.7]} 46. Bxe6 {[%clk 0:00:05.1]}
46... Rh4+ {[%clk 0:00:09.2]} 47. Kg5 {[%clk 0:00:03.1]} 47... Rh2 {[%clk
0:00:08.8]} 48. Rg8+ {[%clk 0:00:02.4]} 48... Ke7 {[%clk 0:00:08.8]} 49. Bxc4
{[%clk 0:00:03.3]} 49... Rxb2 {[%clk 0:00:08.1]} 50. Rg7+ {[%clk 0:00:02.1]}
50... Kd8 {[%clk 0:00:08.2]} 51. Rxa7 {[%clk 0:00:02.4]} 51... Rc2 {[%clk
0:00:07.8]} 52. e6 {[%clk 0:00:01.9]} 52... Rxc3 {[%clk 0:00:07.8]} 53. Bb5
{[%clk 0:00:01.6]} 53... Re3 {[%clk 0:00:07.6]} 54. Kf5 {[%clk 0:00:01.7]} 54...
Re1 {[%clk 0:00:07.2]} 55. Rd7+ {[%clk 0:00:02.1]} 55... Kc8 {[%clk 0:00:07.2]}
56. Rd5 {[%clk 0:00:02.3]} 56... Kc7 {[%clk 0:00:06.7]} 57. Re5 {[%clk
0:00:02.2]} 57... Rxe5+ {[%clk 0:00:06.3]} 58. Kxe5 {[%clk 0:00:03.1]} 58... Kd8
{[%clk 0:00:07.2]} 59. Kd5 {[%clk 0:00:03.6]} 59... Ke7 {[%clk 0:00:08.1]} 60.
Bd7 {[%clk 0:00:03.9]} 60... Bg1 {[%clk 0:00:08.2]} 61. Kc4 {[%clk 0:00:04.2]}
61... Bf2 {[%clk 0:00:08.6]} 62. Kb5 {[%clk 0:00:05.1]} 62... Bg1 {[%clk
0:00:08.9]} 63. a4 {[%clk 0:00:06]} 63... Bf2 {[%clk 0:00:09.4]} 64. Kc4 {[%clk
0:00:06.4]} 64... Bg1 {[%clk 0:00:09.4]} 65. Kd3 {[%clk 0:00:06.8]} 65... Bf2
{[%clk 0:00:10]} 66. Ke2 {[%clk 0:00:07.2]} 66... Bc5 {[%clk 0:00:10.2]} 67. Kd3
{[%clk 0:00:07.6]} 67... Bb4 {[%clk 0:00:10.4]} 68. Ke4 {[%clk 0:00:07.8]} 68...
Be1 {[%clk 0:00:10.3]} 69. Kf3 {[%clk 0:00:07.5]} 69... Bb4 {[%clk 0:00:10.3]}
70. Kf4 {[%clk 0:00:07.8]} 70... Bc5 {[%clk 0:00:10.8]} 71. Ke4 {[%clk
0:00:07.8]} 71... Bg1 {[%clk 0:00:10.1]} 72. Kd5 {[%clk 0:00:08.1]} 72... Bf2
{[%clk 0:00:10.4]} 73. Kc6 {[%clk 0:00:08.4]} 73... Bg1 {[%clk 0:00:10.8]} 74.
Kb5 {[%clk 0:00:08.8]} 74... Bf2 {[%clk 0:00:11.4]} 75. a5 {[%clk 0:00:08.3]}
75... bxa5 {[%clk 0:00:11.9]} 76. Kxa5 {[%clk 0:00:08.5]} 76... Bh4 {[%clk
0:00:12.1]} 77. Kb5 {[%clk 0:00:08.7]} 77... Bf6 {[%clk 0:00:13]} 78. Ka4 {[%clk
0:00:09]} 78... Bh4 {[%clk 0:00:13.9]} 79. Kb5 {[%clk 0:00:09.5]} 79... Be1
{[%clk 0:00:14.8]} 80. Ka4 {[%clk 0:00:10]} 80... Bh4 {[%clk 0:00:15.1]} 81. Kb5
{[%clk 0:00:10.5]} 1/2-1/2

[Event "*** Titled Tuesday Blitz"]
[Site "Chess.com"]
[Date "2020.12.29"]
[Round "8"]
[White "Harry_Rakkel"]
[Black "AttilaTurzo"]
[Result "1-0"]
[WhiteElo "2638"]
[BlackElo "2487"]
[TimeControl "180+1"]
[EndTime "11:30:08 PST"]
[Termination "Harry_Rakkel won on time"]

1. e4 {[%clk 0:03:00.9]} 1... c5 {[%clk 0:02:59.5]} 2. Nf3 {[%clk 0:03:00.3]}
2... Nc6 {[%clk 0:03:00.1]} 3. d4 {[%clk 0:02:58.9]} 3... cxd4 {[%clk 0:03:01]}
4. Nxd4 {[%clk 0:02:58.9]} 4... Nf6 {[%clk 0:03:01.4]} 5. Nc3 {[%clk 0:02:58.3]}
5... d6 {[%clk 0:03:01.8]} 6. Bg5 {[%clk 0:02:56.9]} 6... e6 {[%clk 0:03:01.9]}
7. Qd2 {[%clk 0:02:55.9]} 7... a6 {[%clk 0:03:02.3]} 8. O-O-O {[%clk 0:02:53.8]}
8... Bd7 {[%clk 0:03:02.6]} 9. f4 {[%clk 0:02:48.6]} 9... b5 {[%clk 0:03:02.3]}
10. Bxf6 {[%clk 0:02:48.3]} 10... gxf6 {[%clk 0:03:03.2]} 11. Kb1 {[%clk
0:02:47.9]} 11... Qb6 {[%clk 0:03:02.8]} 12. Nce2 {[%clk 0:02:47.5]} 12... Na5
{[%clk 0:02:54.4]} 13. g3 {[%clk 0:02:31.6]} 13... Nc4 {[%clk 0:02:52.3]} 14.
Qd3 {[%clk 0:02:28.2]} 14... Rb8 {[%clk 0:02:48.8]} 15. Bg2 {[%clk 0:02:21.2]}
15... a5 {[%clk 0:02:48.8]} 16. Rhf1 {[%clk 0:02:19.7]} 16... Qc5 {[%clk
0:02:40.2]} 17. f5 {[%clk 0:02:14.9]} 17... e5 {[%clk 0:02:37.3]} 18. Nb3 {[%clk
0:02:13.1]} 18... Qb6 {[%clk 0:02:28.3]} 19. Nc3 {[%clk 0:02:04.1]} 19... Ne3
{[%clk 0:02:04.2]} 20. Nd5 {[%clk 0:01:55.5]} 20... Nxd5 {[%clk 0:02:03.3]} 21.
Qxd5 {[%clk 0:01:51.6]} 21... Bc6 {[%clk 0:01:59.2]} 22. Qd3 {[%clk 0:01:47.5]}
22... b4 {[%clk 0:01:48.7]} 23. Rfe1 {[%clk 0:01:42.2]} 23... h5 {[%clk
0:01:45.7]} 24. Bf1 {[%clk 0:01:39.3]} 24... a4 {[%clk 0:01:37.8]} 25. Nd2
{[%clk 0:01:36.8]} 25... Rd8 {[%clk 0:01:18.1]} 26. Nc4 {[%clk 0:01:33.2]} 26...
Qc5 {[%clk 0:01:17.7]} 27. Ne3 {[%clk 0:01:29.7]} 27... h4 {[%clk 0:01:09]} 28.
g4 {[%clk 0:01:28]} 28... Bh6 {[%clk 0:01:06.2]} 29. Nd5 {[%clk 0:01:24.7]}
29... Bg5 {[%clk 0:01:05]} 30. h3 {[%clk 0:01:20.8]} 30... Kf8 {[%clk
0:01:05.1]} 31. Qc4 {[%clk 0:01:13.7]} 31... Kg7 {[%clk 0:01:00.4]} 32. Qxc5
{[%clk 0:01:12.9]} 32... dxc5 {[%clk 0:01:01.3]} 33. Bc4 {[%clk 0:01:11.9]}
33... a3 {[%clk 0:00:55.8]} 34. b3 {[%clk 0:01:05.1]} 34... Rd6 {[%clk 0:00:49]}
35. Rd3 {[%clk 0:01:04.3]} 35... Rhd8 {[%clk 0:00:48.9]} 36. Red1 {[%clk
0:01:03.9]} 36... Bb7 {[%clk 0:00:35.1]} 37. c3 {[%clk 0:01:02.6]} 37... Bxd5
{[%clk 0:00:32.2]} 38. Bxd5 {[%clk 0:01:01.2]} 38... Kf8 {[%clk 0:00:26.1]} 39.
Kc2 {[%clk 0:00:46.4]} 39... Ke7 {[%clk 0:00:26.2]} 40. Rf1 {[%clk 0:00:39.6]}
40... Rc8 {[%clk 0:00:25]} 41. Rf2 {[%clk 0:00:36.7]} 41... Rb8 {[%clk
0:00:22.5]} 42. Kd1 {[%clk 0:00:29.8]} 42... Rbd8 {[%clk 0:00:22.3]} 43. Rc2
{[%clk 0:00:27.7]} 43... Rb8 {[%clk 0:00:17.7]} 44. Ke2 {[%clk 0:00:26.3]} 44...
Rd7 {[%clk 0:00:16.8]} 45. cxb4 {[%clk 0:00:24.9]} 45... cxb4 {[%clk 0:00:17.7]}
46. Rc4 {[%clk 0:00:23.2]} 46... Rb6 {[%clk 0:00:17]} 47. Ba8 {[%clk 0:00:18.2]}
47... Rxd3 {[%clk 0:00:15.3]} 48. Kxd3 {[%clk 0:00:19.1]} 48... Kd6 {[%clk
0:00:15.2]} 49. Bd5 {[%clk 0:00:19]} 49... Bc1 {[%clk 0:00:10.5]} 50. Rc8 {[%clk
0:00:17.4]} 50... Ke7 {[%clk 0:00:09.5]} 51. Rc7+ {[%clk 0:00:17]} 51... Ke8
{[%clk 0:00:09.7]} 52. Bxf7+ {[%clk 0:00:15.7]} 52... Kd8 {[%clk 0:00:08.9]} 53.
Ra7 {[%clk 0:00:15.2]} 53... Rd6+ {[%clk 0:00:09.1]} 54. Bd5 {[%clk 0:00:15.1]}
54... Rd7 {[%clk 0:00:08.9]} 55. Ra8+ {[%clk 0:00:15]} 55... Ke7 {[%clk
0:00:09.3]} 56. Rh8 {[%clk 0:00:15.7]} 56... Bg5 {[%clk 0:00:08.8]} 57. Kc4
{[%clk 0:00:15.7]} 57... Rc7+ {[%clk 0:00:08.1]} 58. Kxb4 {[%clk 0:00:15.6]}
58... Rc2 {[%clk 0:00:07]} 59. Kxa3 {[%clk 0:00:15.5]} 59... Rh2 {[%clk
0:00:07.1]} 60. b4 {[%clk 0:00:14.9]} 60... Rxh3+ {[%clk 0:00:07.5]} 61. Ka4
{[%clk 0:00:15.1]} 61... Rh1 {[%clk 0:00:06.6]} 62. Kb5 {[%clk 0:00:15.2]} 62...
h3 {[%clk 0:00:06.9]} 63. a4 {[%clk 0:00:15.3]} 63... h2 {[%clk 0:00:07.1]} 64.
a5 {[%clk 0:00:15.4]} 64... Bf4 {[%clk 0:00:07.6]} 65. a6 {[%clk 0:00:14.6]}
65... Ra1 {[%clk 0:00:07.9]} 66. Kb6 {[%clk 0:00:13.9]} 66... h1=Q {[%clk
0:00:06.7]} 67. Rxh1 {[%clk 0:00:12.7]} 67... Rxh1 {[%clk 0:00:07.6]} 68. b5
{[%clk 0:00:10.4]} 68... Be3+ {[%clk 0:00:07.4]} 69. Kb7 {[%clk 0:00:10]} 69...
Rb1 {[%clk 0:00:07.3]} 70. Bc6 {[%clk 0:00:08.9]} 70... Kd6 {[%clk 0:00:07.3]}
71. a7 {[%clk 0:00:08.4]} 71... Bxa7 {[%clk 0:00:06.4]} 72. Kxa7 {[%clk
0:00:09.3]} 72... Kc7 {[%clk 0:00:06.8]} 73. b6+ {[%clk 0:00:05.7]} 73... Rxb6
{[%clk 0:00:06.8]} 74. Bd5 {[%clk 0:00:05.1]} 74... Rb1 {[%clk 0:00:06.4]} 75.
Ka6 {[%clk 0:00:05.1]} 75... Rg1 {[%clk 0:00:06.8]} 76. Kb5 {[%clk 0:00:03.4]}
76... Rxg4 {[%clk 0:00:07.2]} 77. Kc5 {[%clk 0:00:04]} 77... Rg2 {[%clk
0:00:06.6]} 78. Kc4 {[%clk 0:00:04.5]} 78... Rd2 {[%clk 0:00:06.5]} 79. Kb5
{[%clk 0:00:05.1]} 79... Rd4 {[%clk 0:00:07.3]} 80. Kc5 {[%clk 0:00:05.9]} 80...
Kd8 {[%clk 0:00:06.8]} 81. Kd6 {[%clk 0:00:05.6]} 81... Ra4 {[%clk 0:00:04.8]}
82. Ke6 {[%clk 0:00:06.1]} 82... Ra6+ {[%clk 0:00:05]} 83. Kf7 {[%clk
0:00:06.7]} 83... Kd7 {[%clk 0:00:03.8]} 84. Be6+ {[%clk 0:00:06.9]} 84... Kd6
{[%clk 0:00:04.1]} 85. Kxf6 {[%clk 0:00:07.8]} 85... Rb6 {[%clk 0:00:03]} 86.
Bd5 {[%clk 0:00:08.4]} 86... Rb8 {[%clk 0:00:01]} 87. Kg7 {[%clk 0:00:08.7]} 1-0